Cogmind - Beta 15 @@@ ROGUE MODE // 2025.06.04 @ 22:54:43 Player: jumpy Result: Destroyed by H-66 Slayer with Gauss Rifle Performance ------------- Evolutions (5) 2500 Regions Visited (7) 1400 Robots Destroyed (48) 240 Value Destroyed (1885) 1885 Prototype IDs (7) 140 Alien Tech Used (0) 0 Bonus (837) 837 TOTAL SCORE: 7002 Bonus ------- Follower Combat Kills 37 Registered with UFD 300 Met Optimus in HQ 500 Cogmind --------- Core Integrity 0/1000 Matter 273/300 Energy 305/340 System Corruption 24% Temperature Cool (0) Movement Treading (240) Ox1 Location -5/Upper Caves Parts ------- > --- POWER (1) -------- Particle Reactor > --- PROPULSION (5) --- Medium Treads Medium Treads > --- UTILITY (8) ------ Actuator Array Makeshift ECM Suite (fused) > --- WEAPON (3) ------- Beamcaster Katana > --- INVENTORY (5) ---- ECM Suite Peak State ------------ > --- POWER ------------ Light Angular Momentum Engine > --- PROPULSION ------- Medium Treads Medium Treads Armored Huge Wheel > --- UTILITY ---------- High-capacity Storage Unit Improved Sensor Array Improved Signal Interpreter Experimental Terrain Scanner Core Analyzer Improved Heavy Armor Plating > --- WEAPON ----------- Gauss Rifle Gauss Rifle Falx > --- INVENTORY -------- Ion Engine Light Ion Engine Triangulator Improved Sensor Array Advanced Signal Interpreter Improved Terrain Scanner Improved Melee Analysis Suite Improved Melee Analysis Suite Gauss Rifle Heavy Machine Gun Proton Missile Launcher Long-range Missile Launcher Mining Laser Great Maul Katana Greatsword Falx [Rating: 70] Favorites ----------- Power Ion Engine Engine Ion Engine Power Core Fission Core Reactor Particle Reactor Propulsion Light Treads Treads Light Treads Wheel Armored Huge Wheel Utility High-capacity Storage Unit Device Seismic Detector Storage High-capacity Storage Unit Processor Core Analyzer Protection Improved Heavy Armor Plating Weapon Assault Rifle Energy Gun Medium Laser Ballistic Gun Assault Rifle Ballistic Cannon Heavy Flak Cannon Special Weapon Mining Laser Impact Weapon Great Maul Slashing Weapon Falx Build | -11 -10 -10 -9 -6 -5 -5 -5 ------- Run | Yrd Mat Sub Scr Fac Fac Upp Upp Slots Evolved 10 | . . . . 8 2 . . Power . | . . . . . . . . Propulsion 3 | . . . . 2 1 . . Utility 6 | . . . . 5 1 . . Weapon 1 | . . . . 1 . . . Parts Attached 57 | 8 1 1 2 24 7 14 . Power 11 | 1 . 1 1 4 2 2 . Engine 6 | 1 . 1 . 4 . . . Core 4 | . . . 1 . 2 1 . Reactor 1 | . . . . . . 1 . Propulsion 12 | 2 . . 1 6 . 3 . Treads 11 | 2 . . 1 5 . 3 . Leg . | . . . . . . . . Wheel 1 | . . . . 1 . . . Hover . | . . . . . . . . Flight . | . . . . . . . . Utility 18 | 2 1 . . 7 4 4 . Device 10 | 1 . . . 4 1 4 . Storage 2 | 1 1 . . . . . . Processor 4 | . . . . 2 2 . . Hackware . | . . . . . . . . Protection 2 | . . . . 1 1 . . Artifact . | . . . . . . . . Weapon 16 | 3 . . . 7 1 5 . Energy Gun 3 | 1 . . . 1 . 1 . Energy Cannon . | . . . . . . . . Ballistic Gun 5 | 2 . . . 2 . 1 . Ballistic Cannon 1 | . . . . 1 . . . Launcher . | . . . . . . . . Special Weapon 1 | . . . . 1 . . . Impact Weapon 1 | . . . . . . 1 . Slashing Weapon 5 | . . . . 2 1 2 . Piercing Weapon . | . . . . . . . . Special Melee Weapon . | . . . . . . . . Unidentified Prototypes 1 | . . . . . 1 . . Corrupted Parts 3 | . . . . . . 3 . System Corruption 15 | . . . . . . 15 . Parts Lost 20 | . . . . 11 3 5 1 Power 3 | . . . . 2 . 1 . Propulsion 9 | . . . . 6 2 1 . Utility 2 | . . . . 1 . 1 . Weapon 6 | . . . . 2 1 2 1 Highest Loss Streak 3 | . . . . 3 2 3 1 To Critical Strikes . | . . . . . . . . Average Backups 10 | 4 7 9 12 14 15 2 1 Power 1 | . 1 1 2 2 1 . . Propulsion 2 | 1 2 4 4 1 . . . Utility 2 | . 2 2 2 3 6 1 1 Weapon 3 | 1 2 2 2 7 7 1 . Tool/Special . | . . . . . . . . Unused Backups 13 | . . . 2 1 9 . 1 Power . | . . . . . . . . Propulsion 2 | . . . 2 . . . . Utility 6 | . . . . 1 4 . 1 Weapon 5 | . . . . . 5 . . Tool/Special . | . . . . . . . . Average Slot Usage (%) 79 | . 100 100 100 84 67 23 47 Engine 5 | . 14 14 7 5 4 . . Core 3 | . . . 6 . . . . Treads 20 | . 28 28 28 22 4 5 11 Device 13 | . 14 14 14 17 10 4 11 Storage 8 | . 14 14 14 6 4 . . Processor 2 | . . . . 6 18 . . Protection 1 | . . . . 3 4 . . Energy Gun 7 | . 14 14 14 1 . . 5 Ballistic Gun 10 | . 14 14 14 10 . 2 . Slashing Weapon 2 | . . . . 5 10 3 5 Peak Build Rating 70 | 7 8 8 17 70 70 37 33 Average Rating 28 | 5 7 8 13 56 61 21 31 On Entrance 15 | . 7 8 8 17 52 1 33 Naked Turns 218 | . . . . . 8 210 . Heaviest Build 84 | 15 50 50 55 84 64 42 42 Greatest Support 104 | 40 40 40 48 104 28 70 28 Greatest Overweight (x) 9 | . 1 1 1 2 2 9 1 Average Overweight (x) . | . . 1 1 . 1 . 1 Largest Inventory Capacity 20 | 8 20 20 20 20 20 5 5 Average Capacity 16 | 7 18 20 20 20 19 5 5 Most Carried 20 | 7 9 10 17 20 17 5 1 Average Carried 11 | 4 7 9 12 16 15 2 1 Final Capacity 20 | 8 20 20 20 20 5 5 5 Final Carried 17 | 7 9 10 15 17 5 1 1 Class Distribution -------------------- 69% | Mutant 16% | Scavenger-Mutant 6% | Gladiator 3% | Scavenger-Assassin Dominant Class ---------------- Mutant | -10/Materials Mutant | -10/Subcaves Mutant | -9/Scraptown Scavenger-Mutant | -6/Factory Gladiator | -5/Factory Mutant | -5/Upper Caves Scavenger-Gladiator | -5/Upper Caves Resources | -11 -10 -10 -9 -6 -5 -5 -5 ----------- Run | Yrd Mat Sub Scr Fac Fac Upp Upp Matter Collected 1433 | 301 56 13 20 775 60 208 . Remotely . | . . . . . . . . Salvage Created 2570 | 167 87 . . 1620 416 280 . Parts 124 | 16 8 . . 73 18 9 . Haulers Intercepted 3 | . 1 . . 2 . . . Recyclers Shooed 2 | . . . . 2 . . . Parts Field Recycled . | . . . . . . . . Retrieved Matter . | . . . . . . . . Parts Self-Destructed 22 | . . 14 . . . 8 . Prevented 3 | . . . . . . 3 . Kills | -11 -10 -10 -9 -6 -5 -5 -5 ------- Run | Yrd Mat Sub Scr Fac Fac Upp Upp Combat Hostiles Destroyed 34 | . 1 . . 21 7 5 . Melee 11 | . . . . 2 7 2 . Guns 20 | . 1 . . 18 . 1 . Cannons 1 | . . . . 1 . . . Classes Destroyed 14 | 2 2 . . 8 . 2 . Builder 1 | . . . . 1 . . . Tunneler 5 | 5 . . . . . . . Hauler 3 | . 1 . . 2 . . . Recycler 3 | 1 . . . 2 . . . Mechanic 1 | . . . . 1 . . . Watcher 1 | . . . . 1 . . . Swarmer 5 | . . . . 3 . 2 . Grunt 18 | . 1 . . 9 7 1 . Duelist 1 | . . . . 1 . . . Sentry 3 | . . . . 2 . 1 . Hunter 2 | . . . . 2 . . . Programmer 5 | . . . . 4 . 1 . Decomposer 1 | . . . . . . 1 . Samaritan 1 | . . . . . . 1 . Best Kill Streak 4 | 2 1 . . 4 4 3 . Combat Bots Only 4 | . 1 . . 3 4 3 . Max Kills in Single Turn 2 | 1 1 . . 2 1 1 . Gunslinging . | . . . . . . . . Exploded . | . . . . . . . . Melee 1 | . . . . 1 1 1 . Uniques/NPCs Destroyed . | . . . . . . . . Combat | -11 -10 -10 -9 -6 -5 -5 -5 -------- Run | Yrd Mat Sub Scr Fac Fac Upp Upp Hostile Shots Fired 489 | . 8 . . 306 51 108 16 Missed 153 | . 4 . . 100 14 33 2 Hits 336 | . 4 . . 206 37 75 14 Melee 2 | . . . . 2 . . . Projectile 334 | . 4 . . 204 37 75 14 AOE 2 | . . . . . 2 . . Critical Strikes 20 | . . . . 7 6 6 1 Damage Taken 5416 | . 58 . . 2784 912 1382 280 Core 1242 | . . . . 234 296 662 50 Absorbed by Shields . | . . . . . . . . Regen/Repaired (Parts) 225 | . . . . 225 . . . Core Remaining (%) 90 | 100 . . 100 72 . . . Volleys Fired 103 | 18 7 1 . 70 . 5 2 Largest 2 | 2 2 2 . 2 . 1 1 Hottest 129 | 70 70 70 . 129 . 28 75 Shots Fired 198 | 36 14 2 . 139 . 5 2 Gun 190 | 36 14 2 . 131 . 5 2 Cannon 8 | . . . . 8 . . . Launcher . | . . . . . . . . Special . | . . . . . . . . Kinetic 162 | 18 7 1 . 131 . 5 . Thermal 36 | 18 7 1 . 8 . . 2 Explosive . | . . . . . . . . Electromagnetic . | . . . . . . . . Robot Hit Streak 15 | 6 7 4 . 15 . 3 . Robot Miss Streak 3 | 2 2 . . 3 . 1 2 Penetration Max 1 | . . . . 1 . . . Secondary Targets 1 | . . . . 1 . . . Max Gunslinging Chain 1 | . . . . 1 . . . Shots Hit Robots 177 | 23 9 2 . 112 12 19 . Core Hits 92 | 7 5 . . 68 8 4 . Critical Kills 2 | . . . . 2 . . . Critical Parts Destroyed 1 | . . . . . . 1 . Critical Strikes 9 | . . 1 . 2 2 4 . Burn 1 | . . 1 . . . . . Destroy 2 | . . . . 2 . . . Smash 1 | . . . . . . 1 . Sever 5 | . . . . . 2 3 . Melee Attacks 60 | . . . . 15 21 23 1 Impact 12 | . . . . . . 12 . Slashing 48 | . . . . 15 21 11 1 Piercing . | . . . . . . . . Sneak Attacks 6 | . . . . 5 . 1 . Combat Hostiles . | . . . . . . . . Follow-up Attacks 3 | . . . . . 3 . . Damage Inflicted 4773 | 284 131 27 . 2940 621 767 3 Guns 2676 | 284 113 27 . 2187 . 65 . Cannons 143 | . . . . 143 . . . Explosions . | . . . . . . . . Melee 1924 | . . . . 610 621 693 . Ramming 30 | . 18 . . . . 9 3 Kinetic 2456 | 122 50 15 . 2204 . 65 . Thermal 363 | 162 63 12 . 126 . . . Explosive . | . . . . . . . . Electromagnetic . | . . . . . . . . Impact 434 | . . . . . . 434 . Slashing 1490 | . . . . 610 621 259 . Piercing . | . . . . . . . . Highest Corruption 24 | . . . . 3 3 24 24 Average Corruption 8 | . . . . 1 2 11 24 Corruption Purged 6 | . . . . 6 . . . Corruption Blocked . | . . . . . . . . Effects 54 | . . . . 8 1 44 1 Message Errors 12 | . . . . 1 . 11 . Matter Fused 14 | . . . . 1 . 13 . Heat Flow Errors 8 | . . . . . . 8 . Energy Discharges 11 | . . . . 5 1 4 1 Parts Fused 1 | . . . . . . 1 . Data Loss (minor) 4 | . . . . 1 . 3 . Data Loss (major) 3 | . . . . . . 3 . Alerts 1 | . . . . . . 1 . Overload Shots . | . . . . . . . . Overflow Damage 152 | . . . . 81 . 71 . Projectiles . | . . . . . . . . Explosions . | . . . . . . . . Melee 152 | . . . . 81 . 71 . Knockbacks 7 | . . . . 5 . 2 . Impact 2 | . . . . . . 2 . Kinetic 5 | . . . . 5 . . . Secondary . | . . . . . . . . Self-Inflicted Damage 4 | . . . . . . 4 . Shots . | . . . . . . . . Rammed 4 | . 2 . . . . 1 1 Targets Rammed 4 | . 2 . . . . 1 1 Kicked . | . . . . . . . . Crushed . | . . . . . . . . Highest Temperature 268 | 54 45 . . 120 . 268 13 Average Temperature 39 | 18 22 . . 30 . 98 9 Received Heat Transfer 1086 | . 33 . . 597 240 207 9 Siege Activations . | . . . . . . . . Martial Activations . | . . . . . . . . Shielding Activations . | . . . . . . . . Robots Disrupted . | . . . . . . . . Combat Hostiles . | . . . . . . . . Robots Corrupted 3 | . . . . . . 3 . Combat Hostiles 2 | . . . . . . 2 . Parts Fried 4 | . . . . . . 4 . Impact Corruptions 5 | . . . . . . 5 . Robots Melted . | . . . . . . . . Combat Hostiles . | . . . . . . . . Parts Melted 1 | . . . . 1 . . . Heat Transferred 1127 | 481 185 111 . 350 . . . Parts Sabotaged . | . . . . . . . . Parts Stolen . | . . . . . . . . Parts Stripped . | . . . . . . . . Power Chain Reactions . | . . . . . . . . Alert | -11 -10 -10 -9 -6 -5 -5 -5 ------- Run | Yrd Mat Sub Scr Fac Fac Upp Upp Maximum Alert Level 1 | . . . . 1 . . . Low Security (%) 89 | 100 100 . . 83 100 . . Level 1 10 | . . . . 16 . . . Level 2 . | . . . . . . . . Level 3 . | . . . . . . . . Level 4 . | . . . . . . . . Level 5 . | . . . . . . . . High Security . | . . . . . . . . Max Security . | . . . . . . . . Peak Influence 281 | 5 30 . . 281 179 . . Initial 137 | . . . . . 137 . . Average 64 | 1 2 . . 70 111 . . Influence Increases 1065 | 30 37 . . 704 164 130 . Destroy 0b10 Robot/C 680 | . 20 . . 420 140 100 . Destroy 0b10 Robot/NC 70 | 30 5 . . 35 . . . Destroy Leader 148 | . 12 . . 116 20 . . Successful Hack 26 | . . . . 26 . . . Disable Machine 45 | . . . . 45 . . . Destroy Structure 6 | . . . . 2 4 . . Partial Spotted 15 | . . . . 15 . . . Lose Combat Pursuer 75 | . . . . 45 . 30 . Influence Decreases 1065 | 30 37 . . 423 412 163 . Entered New Map 157 | . . . . . 144 13 . Time Decay 788 | 30 37 . . 333 238 150 . Lost Part 120 | . . . . 90 30 . . Squads Dispatched 16 | . 1 . . 11 4 . . Investigation 10 | . 1 . . 6 3 . . Extermination 4 | . . . . 3 1 . . Reinforcement 2 | . . . . 2 . . . Assault . | . . . . . . . . Garrison . | . . . . . . . . Intercept . | . . . . . . . . Searches Triggered . | . . . . . . . . Construction Impeded . | . . . . . . . . Haulers Reinforced 1 | . . . . 1 . . . Active Scanning Responses . | . . . . . . . . Cargo Convoy Interrupts . | . . . . . . . . Stealth | -11 -10 -10 -9 -6 -5 -5 -5 --------- Run | Yrd Mat Sub Scr Fac Fac Upp Upp Distress Signals 2 | . . . . 1 1 . . Communications Jammed . | . . . . . . . . Distress Signals . | . . . . . . . . Times Spotted 61 | . 4 2 . 33 11 9 2 Peak Tracking Total 5 | . 3 2 . 4 4 5 2 Tactical Retreats 3 | . . . . 1 . 2 . Traps | -11 -10 -10 -9 -6 -5 -5 -5 ------- Run | Yrd Mat Sub Scr Fac Fac Upp Upp Traps Triggered 1 | . . . . 1 . . . Indirectly . | . . . . . . . . Trap Hack Attempts . | . . . . . . . . Triggered . | . . . . . . . . Disarmed . | . . . . . . . . Reprogrammed . | . . . . . . . . Reused . | . . . . . . . . Traps Extracted . | . . . . . . . . Installed . | . . . . . . . . Triggered . | . . . . . . . . Machines | -11 -10 -10 -9 -6 -5 -5 -5 ---------- Run | Yrd Mat Sub Scr Fac Fac Upp Upp Machines Disabled 3 | . . . . 3 . . . Max in Single Turn 1 | . . . . 1 . . . Machines Repaired . | . . . . . . . . Machines Dismantled . | . . . . . . . . Machines Sabotaged . | . . . . . . . . Overloaded Fab Kills . | . . . . . . . . Hacking | -11 -10 -10 -9 -6 -5 -5 -5 --------- Run | Yrd Mat Sub Scr Fac Fac Upp Upp Machines Accessed 15 | . . 1 1 9 4 . . Terminals 2 | . . . . 1 1 . . Fabricators 1 | . . . . 1 . . . Repair Stations 3 | . . . . 3 . . . Recycling Units 6 | . . . . 4 2 . . Scanalyzers . | . . . . . . . . Garrison Access 1 | . . . . . 1 . . Total Hacks 30 | . . 2 5 14 9 . . Successful 17 | . . 2 5 8 2 . . Failed 13 | . . . . 6 7 . . Catastrophic 1 | . . . . . 1 . . Database Lockouts . | . . . . . . . . Manual 17 | . . . . 10 7 . . Terminals 8 | . . . . 3 5 . . Fabricators 2 | . . . . 2 . . . Repair Stations 5 | . . . . 5 . . . Recycling Units 6 | . . . . 4 2 . . Scanalyzers . | . . . . . . . . Garrison Access 2 | . . . . . 2 . . Terminal Hacks 7 | . . 2 5 . . . . Record 7 | . . 2 5 . . . . Fabricator Hacks . | . . . . . . . . Repair Station Hacks 2 | . . . . 2 . . . Scan Component 1 | . . . . 1 . . . Repair 1 | . . . . 1 . . . Recycling Unit Hacks . | . . . . . . . . Scanalyzer . | . . . . . . . . Garrison Access Hacks . | . . . . . . . . Unauthorized Hacks 8 | . . . . 6 2 . . Terminals 1 | . . . . 1 . . . Assimilate 1 | . . . . 1 . . . Fabricators . | . . . . . . . . Repair Stations 1 | . . . . 1 . . . Patch 1 | . . . . 1 . . . Recycling Units 6 | . . . . 4 2 . . Fedlink 6 | . . . . 4 2 . . Scanalyzers . | . . . . . . . . Garrison Access . | . . . . . . . . Data Cores Recovered . | . . . . . . . . Used . | . . . . . . . . Hacking Detections 6 | . . . . 4 2 . . Full Trace Events 2 | . . . . 1 1 . . Feedback Events 1 | . . . . 1 . . . Corruption 1 | . . . . 1 . . . Feedback Blocked . | . . . . . . . . Robot Schematics Acquired . | . . . . . . . . Robots Built . | . . . . . . . . Authchips . | . . . . . . . . Time . | . . . . . . . . Total Robot Build Rating . | . . . . . . . . Part Schematics Acquired . | . . . . . . . . Parts Built . | . . . . . . . . Authchips . | . . . . . . . . Time . | . . . . . . . . Total Part Build Rating . | . . . . . . . . Parts Repaired 1 | . . . . 1 . . . Time 22 | . . . . 22 . . . Parts Recycled . | . . . . . . . . Recycled Matter . | . . . . . . . . Retrieved Matter . | . . . . . . . . Retrieved Components . | . . . . . . . . Parts Scanalyzed . | . . . . . . . . Part Schematics Acquired . | . . . . . . . . Parts Damaged . | . . . . . . . . Bothacking | -11 -10 -10 -9 -6 -5 -5 -5 ------------ Run | Yrd Mat Sub Scr Fac Fac Upp Upp Used RIF Installer . | . . . . . . . . Robots Hacked . | . . . . . . . . Non-combat . | . . . . . . . . Combat . | . . . . . . . . Robot Hacks Applied . | . . . . . . . . Relay Couplers Released . | . . . . . . . . Fabnet Peak Effective % . | . . . . . . . . Robots Rewired 1 | . . . . . . 1 . Allies Hacked . | . . . . . . . . Hacks Repelled . | . . . . . . . . Allies | -11 -10 -10 -9 -6 -5 -5 -5 -------- Run | Yrd Mat Sub Scr Fac Fac Upp Upp Total Allies 2 | . . . . 1 . 1 . Largest Group 1 | . . . . 1 . 1 1 Highest-Rated Group 49 | . . . . 10 . 49 49 Highest-Rated Ally 49 | . . . . 10 . 49 49 Total Orders . | . . . . . . . . Ally Attacks 8 | . . . . . . 3 5 Total Damage 295 | . . . . . . 121 174 Kills 1 | . . . . . . 1 . Allies Corrupted . | . . . . . . . . Allies Melted . | . . . . . . . . Intel | -11 -10 -10 -9 -6 -5 -5 -5 ------- Run | Yrd Mat Sub Scr Fac Fac Upp Upp Active Infowar (turns) 6372 | 51 279 362 2847 1890 496 433 14 Sensors 972 | . . . . 476 496 . . Terrain 2483 | . . . . 1887 496 100 . Seismic 4953 | 51 279 362 2847 1414 . . . Triangulation 711 | . . . . 711 . . . ECM 347 | . . . . . . 333 14 Robot Analysis Total . | . . . . . . . . Derelict Logs Recovered 1 | . . . . . . 1 . Drone Launches . | . . . . . . . . Drone Recoveries . | . . . . . . . . Exploration | -11 -10 -10 -9 -6 -5 -5 -5 ------------- Run | Yrd Mat Sub Scr Fac Fac Upp Upp Turns Passed 7436 | 267 279 362 2847 1890 504 1273 14 Spaces Moved 3568 | 123 111 145 1182 844 247 914 2 Core 437 | 2 . . . . 18 417 . Treads 2801 | 121 111 145 1182 743 . 497 2 Legs . | . . . . . . . . Wheels 330 | . . . . 101 229 . . Hover . | . . . . . . . . Flight . | . . . . . . . . Fastest Speed 50 | 50 160 240 240 115 50 50 240 Average Speed 182 | 158 226 240 240 169 123 125 240 Slowest Speed 500 | 160 240 240 240 240 130 500 240 Overloaded Moves . | . . . . . . . . Propulsion Burnouts . | . . . . . . . . Robots Hopped . | . . . . . . . . Potential Cave-ins . | . . . . . . . . Cave-ins Triggered . | . . . . . . . . Exploration Rate (%) 31 | 7 30 21 86 26 7 74 4 Regions Visited 7 Branch Regions 4 Pre-discovered Areas 2 | . . . 1 1 . . . Known Exits Taken 1 | . . . . 1 . . . Unknown Exits Taken 6 | 1 1 1 1 . 1 1 . Scrap Searched 8 | . . . 3 . . 5 . Spaces Dug 4 | . . . . . 2 2 . Terrain Destroyed 9 | . . . . 5 2 2 . Melee 4 | . . . . . 2 2 . Projectile 5 | . . . . 5 . . . AOE . | . . . . . . . . Terrain Rammed . | . . . . . . . . Walls Destroyed . | . . . . . . . . Machines Disabled . | . . . . . . . . Actions | -11 -10 -10 -9 -6 -5 -5 -5 --------- Run | Yrd Mat Sub Scr Fac Fac Upp Upp Total 4172 | 156 123 157 1193 1132 412 993 6 Wait 320 | . . 11 3 147 140 19 . Move 3561 | 122 110 144 1181 843 246 913 2 Hop . | . . . . . . . . Pick Up 36 | 8 2 . 5 18 2 1 . Fast Attach 25 | 6 . . . 7 1 11 . Attach 19 | 1 . . . 11 3 4 . Detach 2 | . . . . . 1 1 . Swap 19 | 1 1 1 2 11 3 . . Drop 17 | . 1 . 2 10 1 3 . Fire 103 | 18 7 1 . 70 . 5 2 Melee 54 | . . . . 15 15 23 1 Ram 1 | . . . . . . 1 . Kick . | . . . . . . . . Crush 3 | . 2 . . . . . 1 Escape Stasis . | . . . . . . . . Rewire 12 | . . . . . . 12 . Trap . | . . . . . . . . Miscellaneous . | . . . . . . . . Route ------- -11/Scrapyard -10/Materials (discovered 2 exits: [*Min] / *Sub) -10/Subcaves (discovered 2 exits: [*Mat] / *Scr) -9/Scraptown (discovered 2 exits: *Fac x2) -6/Factory -5/Factory -5/Upper Caves -5/Upper Caves History --------- Turn | Location | Event 24 | -11/Scrapyard | Discovered new exit (range 16) 268 | -11/Scrapyard | Entered Materials 269 | -10/Materials | Met a group of wandering Federalists 324 | -10/Materials | Build established: Mutant 389 | -10/Materials | Discovered new exit (range 8) 542 | -10/Materials | Discovered new exit (range 3) 547 | -10/Materials | Entered Subcaves 548 | -10/Subcaves | Continued accompanying wandering Federalists (5) 583 | -10/Subcaves | Discovered new exit (range 9) 595 | -10/Subcaves | Lost 3 allies 677 | -10/Subcaves | Visited Clippyterm 909 | -10/Subcaves | Entered Scraptown 1339 | -9/Scraptown | Heard Great Nut preacher, LISTEN AND RECITE! 1454 | -9/Scraptown | Discovered new exit (range 13) 1666 | -9/Scraptown | Visited Symbiants 1829 | -9/Scraptown | Visited IN-MT5's Study 1937 | -9/Scraptown | Visited Spacefarers 2074 | -9/Scraptown | Visited Awakened 2129 | -9/Scraptown | Visited Shadow of the Wyrm 2646 | -9/Scraptown | Visited UFD Registry 2646 | -9/Scraptown | Registered with UFD as "Flashdome" 2701 | -9/Scraptown | Visited Sword Containment 2793 | -9/Scraptown | Visited Scrapoid Research Area 2832 | -9/Scraptown | Visited Observation Area 2875 | -9/Scraptown | Visited Abandonware Association 2901 | -9/Scraptown | Learned abandonware demo "TRNCOAT.EXE" 2901 | -9/Scraptown | Learned abandonware demo "REVENGE.EXE" 2966 | -9/Scraptown | Visited Supply Room 3026 | -9/Scraptown | Visited Infowarlord's Domain 3045 | -9/Scraptown | Found Exp. Terrain Scanner 3099 | -9/Scraptown | Visited Curators Association 3161 | -9/Scraptown | Visited Science Guys 3197 | -9/Scraptown | Visited Supply Room 3619 | -9/Scraptown | Met Optimus 3619 | -9/Scraptown | Accepted into 0bPrime 3744 | -9/Scraptown | Discovered new exit (range 5) 3756 | -9/Scraptown | Entered Factory 3756 | -6/Factory | Evolved 8 slots: Propulsion x2, Utility x5, Weapon x1 4139 | -6/Factory | Lost 3 parts (1p2n) 4262 | -6/Factory | Repaired Med. Treads 4448 | -6/Factory | Build established: Scavenger-Mutant 4556 | -6/Factory | Loaded intel: 8 recycling unit locations 4604 | -6/Factory | Learned location of Protoforge (-2) 5640 | -6/Factory | Discovered new exit (range 3) 5642 | -6/Factory | Identified exit to Factory 5646 | -6/Factory | Entered another Factory area 5646 | -5/Factory | Evolved 2 slots: Propulsion x1, Utility x1 5759 | -5/Factory | Loaded intel: 8 recycling unit locations 5959 | -5/Factory | Build established: Gladiator 6142 | -5/Factory | Released all parts (9) 6143 | -5/Factory | Discovered new exit (range 9) 6150 | -5/Factory | Entered Upper Caves 6211 | -5/Upper Caves | Spotted B-75 Beast 6246 | -5/Upper Caves | Learned 8 Factory zone layouts 6279 | -5/Upper Caves | Encountered a Warlord checkpoint 6781 | -5/Upper Caves | Build established: Mutant 6969 | -5/Upper Caves | Attracted the attention of an 0b10 outpost 6984 | -5/Upper Caves | Core integrity fell below 50% 7001 | -5/Upper Caves | Core integrity fell below 20% 7009 | -5/Upper Caves | Lost 3 parts (1n2w) 7038 | -5/Upper Caves | System corruption reached 10% 7196 | -5/Upper Caves | Ambushed by wild Derelicts 7387 | -5/Upper Caves | Discovered new exit (range 16) 7423 | -5/Upper Caves | Entered another Upper Caves area 7423 | -5/Upper Caves | Accompanied by 1 ally 7437 | -5/Upper Caves | Destroyed by H-66 Slayer with Gauss Rifle Last Messages --------------- 07417_ System corrupted: Heat flow error (+129). LOCATION=UNKNOWN GOAL=ESCAPE 07424_ Penetrated by Slug. 07424_ Slug penetrates Wall. 07424_ Slug penetrates H-66 Slayer. 07426_ Slug penetrates Wall. 07427_ Slug penetrates Sentinel 6a. 07427_ Sentinel 6a suffers critical hit (Destroy). 07429_ Slug penetrates H-66 Slayer. 07430_ Slug penetrates Wall. 07430_ Penetrated by Slug. 07432_ Great Maul destroyed. 07432_ Destroyed Great Maul. 07432_ Slug penetrates H-66 Slayer. 07432_ Slammed into H-66 Slayer. 07433_ System corrupted: Energy discharge (-78). 07433_ Slug penetrates Sentinel 6a. 07433_ Penetrated by Slug. 07437_ Slug penetrates Sentinel 6a. Map ----- +----------------------------------------------------+ | | | | | | | | | | | | | | | ????????????????????????????????????????????????? | | ????????????????????????????????????????????????? | | ????????????????????????????????????????????????? | | ????????????????????????????????????????????????? | | ????????????????????????????????????????????????? | | ????????????????????????????????????????????????? | | ????????????????????????????????????????????????? | | ????????????????????????????????????????????????? | | ????????????????????????????????????????????????? | | ????????????????????????????????????????????????? | | ????????????????????????????????????????????????? | | ????????????????????????????????????????????????? | | ????????????????????????????????????????????????? | | ????????????????????????????????????????????????? | | ?????????????????????????????##?????????????????? | | ????????????????????????##### ##????????????????? | | ???????????????????????## ##???????????????? | | ?????????????????????### #???????????????? | | ?????????????????????# @ #???????????????? | | ?????????????? h #???????????????? | | ??????????# ####### ## hY #???????????????? | | ????????????????????## ?# #???????????????? | | ?????????????????????## ? #???????????????? | | ??????????????????????# ?# #??????????????? | | ??????????????????????# ??## ##??????????????? | | ??????????????????????# ???## #???????????????? | | ?????????????????????? ?????# #???????????????? | | ?????????????????????? ??????###???????????????? | | ?????????????????????? ?????????????????????????? | | ????????????????????? ?????????????????????????? | | ?????????????????????##?????????????????????????? | | ????????????????????????????????????????????????? | | ????????????????????????????????????????????????? | | ????????????????????????????????????????????????? | | ????????????????????????????????????????????????? | | ????????????????????????????????????????????????? | | ????????????????????????????????????????????????? | | ????????????????????????????????????????????????? | | ????????????????????????????????????????????????? | | ????????????????????????????????????????????????? | | ????????????????????????????????????????????????? | | ????????????????????????????????????????????????? | | ????????????????????????????????????????????????? | +----------------------------------------------------+ Best States ------------- Heat Dissipation 40 Energy Generation 23 Energy Capacity 340 Matter Stores 300 Matter Capacity 300 Sight Range 16 Robot Scan Range 15 Terrain Scan Range 30 Terrain Scan Density 10 ECM Strength 2 Armor Coverage 600 Resistance: TH 25 Evasion (%) 50 Melee Accuracy 12 Core Analysis 6 Recoil Reduction 4 Item Schematics ----------------- None Robot Schematics ------------------ None Fabricated ------------ Nothing Repaired ---------- Med. Treads | 28% | -6/Factory Alien Tech Used ----------------- None Achievements -------------- None Challenges ------------ None Game ------ Seed HelicalBottomlessSheargun Manual? 0 Play Time 00:33:41 Cumulative 123.8 hours Start 2025.06.04 @ 21:56:25 End 2025.06.04 @ 22:54:43 Sessions 3 Manual Loads 0 Difficulty Rogue Special Mode None Game No. 319 Rogue 319 Adventurer 0 Explorer 0 Win Type - Total 3 Types 2/0/1/0/0/0/0/0/0/0 Lore% 61 Gallery% 53 Achievement% 45 Wizard Run 0 Options --------- Layout 0 ASCII 0 Keyboard 0 Movement Numpad Keybinds 0 Fullscreen 2 Font 18/Terminus Map View 76x50 Zoom Use 0% Tactical HUD 1 Map Filters NONE Filters NONE Steam 1 RUN: c26da1a5-0ce8-4891-ae00-699d167681e5